[Event "Early-Titled-Tuesday-Blitz-April-02-2024"]
[Site "Chess.com"]
[Date "2024.04.02"]
[Round "9"]
[White "stolencandy13"]
[Black "ilqar_74"]
[Result "1/2-1/2"]
[WhiteElo "2678"]
[BlackElo "2806"]
[TimeControl "180+1"]
[EndTime "9:46:01 PDT"]
[Termination "Game drawn by repetition"]

1. d4 {[%clk 0:03:00.9]} 1... Nf6 {[%clk 0:02:59.6]} 2. Bf4 {[%clk 0:03:00.5]}
2... g6 {[%clk 0:02:57.8]} 3. Nc3 {[%clk 0:03:00.5]} 3... Bg7 {[%clk 0:02:55.1]}
4. e4 {[%clk 0:03:00.4]} 4... d6 {[%clk 0:02:55.2]} 5. Nf3 {[%clk 0:02:59.6]}
5... O-O {[%clk 0:02:55]} 6. Qd2 {[%clk 0:02:59.8]} 6... Nbd7 {[%clk 0:02:50.9]}
7. O-O-O {[%clk 0:02:56.7]} 7... c6 {[%clk 0:02:38.4]} 8. e5 {[%clk 0:02:44.3]}
8... Nd5 {[%clk 0:02:37.2]} 9. Nxd5 {[%clk 0:02:42.4]} 9... cxd5 {[%clk
0:02:37.5]} 10. exd6 {[%clk 0:02:41.5]} 10... e6 {[%clk 0:02:37.7]} 11. Bh6
{[%clk 0:02:38]} 11... Nf6 {[%clk 0:02:34.6]} 12. Bxg7 {[%clk 0:02:30]} 12...
Kxg7 {[%clk 0:02:35.5]} 13. Bd3 {[%clk 0:02:24.9]} 13... Qxd6 {[%clk 0:02:33.6]}
14. h4 {[%clk 0:02:25.5]} 14... h5 {[%clk 0:02:32.6]} 15. Ne5 {[%clk 0:02:23.4]}
15... Nd7 {[%clk 0:02:28]} 16. f4 {[%clk 0:02:14.1]} 16... Rh8 {[%clk
0:01:57.3]} 17. g4 {[%clk 0:02:12.8]} 17... Nxe5 {[%clk 0:01:53.7]} 18. fxe5
{[%clk 0:02:11.1]} 18... Qe7 {[%clk 0:01:53.7]} 19. g5 {[%clk 0:02:00.7]} 19...
Bd7 {[%clk 0:01:53.6]} 20. Rdf1 {[%clk 0:01:59.9]} 20... Rac8 {[%clk 0:01:51.2]}
21. Rh2 {[%clk 0:01:40.4]} 21... b6 {[%clk 0:01:45]} 22. Rhf2 {[%clk 0:01:40.1]}
22... Be8 {[%clk 0:01:42.8]} 23. Qe2 {[%clk 0:01:40.4]} 23... a5 {[%clk
0:01:30.2]} 24. Bb5 {[%clk 0:01:34.4]} 24... Rf8 {[%clk 0:01:20.9]} 25. a3
{[%clk 0:01:24.7]} 25... Qc7 {[%clk 0:01:09.5]} 26. c3 {[%clk 0:01:19.6]} 26...
Bxb5 {[%clk 0:01:06.9]} 27. Qxb5 {[%clk 0:01:20.5]} 27... Qc6 {[%clk 0:01:02.6]}
28. Qxc6 {[%clk 0:00:57.7]} 28... Rxc6 {[%clk 0:01:02.2]} 29. Kd2 {[%clk
0:00:58.6]} 29... Rc7 {[%clk 0:01:01.7]} 30. Kd3 {[%clk 0:00:58.3]} 30... b5
{[%clk 0:00:59.2]} 31. Ra1 {[%clk 0:00:57.4]} 31... Rb8 {[%clk 0:00:59]} 32. b4
{[%clk 0:00:53.7]} 32... Ra7 {[%clk 0:00:38.5]} 33. Rb2 {[%clk 0:00:48.8]} 33...
axb4 {[%clk 0:00:26.5]} 34. Rxb4 {[%clk 0:00:42.5]} 34... Rba8 {[%clk
0:00:26.8]} 35. Rb3 {[%clk 0:00:41.5]} 35... Ra4 {[%clk 0:00:22.6]} 36. Kc2
{[%clk 0:00:36.5]} 36... Rc8 {[%clk 0:00:19.1]} 37. Kb2 {[%clk 0:00:36.1]} 37...
Ra5 {[%clk 0:00:18.6]} 38. Kc2 {[%clk 0:00:28.1]} 38... Rca8 {[%clk 0:00:18]}
39. Kb2 {[%clk 0:00:25.9]} 39... Rc8 {[%clk 0:00:17.8]} 40. Kc2 {[%clk
0:00:22.3]} 40... Kf8 {[%clk 0:00:08.9]} 41. Kb2 {[%clk 0:00:19.6]} 41... Ke7
{[%clk 0:00:07.8]} 42. Rf1 {[%clk 0:00:18.9]} 42... Rca8 {[%clk 0:00:06.1]} 43.
Rf3 {[%clk 0:00:18.4]} 43... Ke8 {[%clk 0:00:05.9]} 44. Rf1 {[%clk 0:00:18.1]}
44... R8a7 {[%clk 0:00:06.5]} 45. Rb1 {[%clk 0:00:17.5]} 45... Kd7 {[%clk
0:00:06.2]} 46. Rf1 {[%clk 0:00:16]} 46... Kc6 {[%clk 0:00:06.5]} 47. Rb1 {[%clk
0:00:15.8]} 47... Ra4 {[%clk 0:00:06.1]} 48. Rc1 {[%clk 0:00:15.6]} 48... Rc4
{[%clk 0:00:05.9]} 49. Rb1 {[%clk 0:00:15.3]} 49... Rca4 {[%clk 0:00:05.9]} 50.
Rf1 {[%clk 0:00:14.4]} 50... Re7 {[%clk 0:00:04.7]} 51. Rb1 {[%clk 0:00:13.2]}
51... Ra5 {[%clk 0:00:05.2]} 52. Ka2 {[%clk 0:00:12.8]} 52... Rea7 {[%clk
0:00:05.9]} 53. Kb2 {[%clk 0:00:13]} 53... Kb6 {[%clk 0:00:06.2]} 54. Rc1 {[%clk
0:00:11.2]} 54... Kc6 {[%clk 0:00:06.5]} 55. Rd1 {[%clk 0:00:11.1]} 55... Re7
{[%clk 0:00:06.5]} 56. Rf1 {[%clk 0:00:11.2]} 56... Rea7 {[%clk 0:00:06.5]} 57.
Rb1 {[%clk 0:00:10.6]} 1/2-1/2

[Event "Early-Titled-Tuesday-Blitz-April-02-2024"]
[Site "Chess.com"]
[Date "2024.04.02"]
[Round "9"]
[White "vladgoncharov"]
[Black "Korchmar_Vasiliy"]
[Result "0-1"]
[WhiteElo "2580"]
[BlackElo "2734"]
[TimeControl "180+1"]
[EndTime "9:46:02 PDT"]
[Termination "Korchmar_Vasiliy won on time"]

1. d4 {[%clk 0:03:00.9]} 1... d5 {[%clk 0:02:59.4]} 2. c4 {[%clk 0:03:00.4]}
2... c6 {[%clk 0:02:59.4]} 3. Nf3 {[%clk 0:02:59.8]} 3... Nf6 {[%clk 0:02:59.2]}
4. e3 {[%clk 0:02:58.5]} 4... e6 {[%clk 0:02:54.4]} 5. Bd3 {[%clk 0:02:55.8]}
5... Ne4 {[%clk 0:02:52.6]} 6. O-O {[%clk 0:02:50]} 6... Bd6 {[%clk 0:02:48.5]}
7. Qc2 {[%clk 0:02:49.2]} 7... f5 {[%clk 0:02:44.7]} 8. b3 {[%clk 0:02:49.4]}
8... Qe7 {[%clk 0:02:36.4]} 9. Bb2 {[%clk 0:02:46.7]} 9... Nd7 {[%clk
0:02:31.2]} 10. Ne5 {[%clk 0:02:46.4]} 10... Nxe5 {[%clk 0:02:25.3]} 11. dxe5
{[%clk 0:02:46]} 11... Bc5 {[%clk 0:02:25.7]} 12. Bd4 {[%clk 0:02:33.8]} 12...
O-O {[%clk 0:02:20.1]} 13. cxd5 {[%clk 0:01:57.2]} 13... cxd5 {[%clk 0:02:05.2]}
14. f3 {[%clk 0:01:45.6]} 14... Bxd4 {[%clk 0:02:02.8]} 15. exd4 {[%clk
0:01:45.7]} 15... Ng5 {[%clk 0:02:03.1]} 16. Nc3 {[%clk 0:01:20.1]} 16... Bd7
{[%clk 0:01:58.9]} 17. Ne2 {[%clk 0:01:20.1]} 17... Rfc8 {[%clk 0:01:50.7]} 18.
Qd2 {[%clk 0:01:19.5]} 18... Nf7 {[%clk 0:01:51.2]} 19. Rfc1 {[%clk 0:01:18.9]}
19... Nd8 {[%clk 0:01:39.6]} 20. b4 {[%clk 0:01:08.7]} 20... Nc6 {[%clk
0:01:30.2]} 21. a3 {[%clk 0:01:07]} 21... a5 {[%clk 0:01:27.2]} 22. b5 {[%clk
0:01:03.3]} 22... Na7 {[%clk 0:01:27.6]} 23. Qxa5 {[%clk 0:00:50.9]} 23... Rxc1+
{[%clk 0:01:02.8]} 24. Rxc1 {[%clk 0:00:50]} 24... Qe8 {[%clk 0:01:03.5]} 25.
Qb6 {[%clk 0:00:39.7]} 25... Bxb5 {[%clk 0:01:00.5]} 26. Bxb5 {[%clk 0:00:28.3]}
26... Nxb5 {[%clk 0:01:01.4]} 27. Qxb7 {[%clk 0:00:27.7]} 27... Rb8 {[%clk
0:00:58.5]} 28. Qc6 {[%clk 0:00:18.4]} 28... Nxa3 {[%clk 0:00:43.9]} 29. Qxe8+
{[%clk 0:00:16.1]} 29... Rxe8 {[%clk 0:00:44.8]} 30. Rc5 {[%clk 0:00:14.7]}
30... g5 {[%clk 0:00:37.7]} 31. h4 {[%clk 0:00:13.9]} 31... h6 {[%clk
0:00:37.4]} 32. Kh2 {[%clk 0:00:13.2]} 32... Kf7 {[%clk 0:00:33.5]} 33. hxg5
{[%clk 0:00:13.4]} 33... hxg5 {[%clk 0:00:34.4]} 34. Kg3 {[%clk 0:00:13.7]}
34... Re7 {[%clk 0:00:27.1]} 35. Nc3 {[%clk 0:00:13]} 35... Nc4 {[%clk
0:00:21.1]} 36. f4 {[%clk 0:00:12.7]} 36... g4 {[%clk 0:00:06.7]} 37. Rc8 {[%clk
0:00:11.7]} 37... Nd2 {[%clk 0:00:04]} 38. Kf2 {[%clk 0:00:08.7]} 38... Ra7
{[%clk 0:00:03.9]} 39. Ke3 {[%clk 0:00:07.5]} 39... Ra3 {[%clk 0:00:03.9]} 40.
Kxd2 {[%clk 0:00:07.1]} 40... Rb3 {[%clk 0:00:04.3]} 41. Kc2 {[%clk 0:00:06.8]}
41... Rb7 {[%clk 0:00:03.8]} 42. Rc6 {[%clk 0:00:05.7]} 42... Rb4 {[%clk
0:00:03.7]} 43. Kd3 {[%clk 0:00:05.2]} 43... Rb2 {[%clk 0:00:04.2]} 44. g3
{[%clk 0:00:05.6]} 44... Rg2 {[%clk 0:00:04.4]} 45. Ne2 {[%clk 0:00:05.8]} 45...
Rf2 {[%clk 0:00:05]} 46. Ke3 {[%clk 0:00:05.1]} 46... Rf3+ {[%clk 0:00:05]} 47.
Kd2 {[%clk 0:00:05.4]} 47... Rf2 {[%clk 0:00:05.7]} 48. Rc3 {[%clk 0:00:04.8]}
48... Rf1 {[%clk 0:00:05.7]} 49. Rc1 {[%clk 0:00:04.4]} 49... Rf3 {[%clk
0:00:05.7]} 50. Rc7+ {[%clk 0:00:02.4]} 50... Ke8 {[%clk 0:00:04.9]} 51. Rg7
{[%clk 0:00:01.6]} 51... Kf8 {[%clk 0:00:04.6]} 0-1

[Event "Early-Titled-Tuesday-Blitz-April-02-2024"]
[Site "Chess.com"]
[Date "2024.04.02"]
[Round "9"]
[White "Shield12"]
[Black "Bauman_Guy"]
[Result "1-0"]
[WhiteElo "3032"]
[BlackElo "2906"]
[TimeControl "180+1"]
[EndTime "9:46:07 PDT"]
[Termination "Shield12 won by resignation"]

1. e4 {[%clk 0:03:00.9]} 1... c6 {[%clk 0:02:51.7]} 2. Nf3 {[%clk 0:03:00.8]}
2... d5 {[%clk 0:02:51.9]} 3. Nc3 {[%clk 0:03:01.7]} 3... Bg4 {[%clk 0:02:52]}
4. h3 {[%clk 0:03:01.6]} 4... Bxf3 {[%clk 0:02:52.2]} 5. Qxf3 {[%clk 0:03:02.5]}
5... e6 {[%clk 0:02:53]} 6. d4 {[%clk 0:03:02]} 6... g6 {[%clk 0:02:53.2]} 7.
Bd3 {[%clk 0:02:59.8]} 7... Bg7 {[%clk 0:02:53.4]} 8. Ne2 {[%clk 0:02:59.6]}
8... Ne7 {[%clk 0:02:52.6]} 9. c3 {[%clk 0:02:58.5]} 9... Nd7 {[%clk 0:02:52.4]}
10. O-O {[%clk 0:02:57.5]} 10... O-O {[%clk 0:02:52.3]} 11. Ng3 {[%clk
0:02:57.6]} 11... c5 {[%clk 0:02:47.2]} 12. exd5 {[%clk 0:02:56.4]} 12... Nxd5
{[%clk 0:02:47.1]} 13. dxc5 {[%clk 0:02:55]} 13... Nxc5 {[%clk 0:02:47]} 14. Bc2
{[%clk 0:02:54.9]} 14... Rc8 {[%clk 0:02:46.3]} 15. Re1 {[%clk 0:02:51.5]} 15...
Qb6 {[%clk 0:02:38.6]} 16. Re2 {[%clk 0:02:50.7]} 16... Rfd8 {[%clk 0:02:35.9]}
17. Rb1 {[%clk 0:02:47.5]} 17... h6 {[%clk 0:02:32.9]} 18. h4 {[%clk 0:02:44.9]}
18... Qa6 {[%clk 0:02:27.3]} 19. a3 {[%clk 0:02:43.3]} 19... Qc6 {[%clk
0:02:20.1]} 20. Ne4 {[%clk 0:02:32.6]} 20... Nxe4 {[%clk 0:02:03.6]} 21. Bxe4
{[%clk 0:02:33.5]} 21... Qc4 {[%clk 0:02:02.5]} 22. g3 {[%clk 0:02:28.6]} 22...
b5 {[%clk 0:02:01.3]} 23. Bd2 {[%clk 0:02:17.5]} 23... Nf6 {[%clk 0:01:50.3]}
24. Bc2 {[%clk 0:02:16.3]} 24... Qg4 {[%clk 0:01:43.5]} 25. Qxg4 {[%clk
0:02:13.5]} 25... Nxg4 {[%clk 0:01:44.4]} 26. Kg2 {[%clk 0:02:10.2]} 26... Ne5
{[%clk 0:01:43.1]} 27. Bxh6 {[%clk 0:01:57.9]} 27... Bxh6 {[%clk 0:01:41.8]} 28.
Rxe5 {[%clk 0:01:57.9]} 28... Rd2 {[%clk 0:01:42.6]} 29. Bb3 {[%clk 0:01:57.8]}
29... Bf8 {[%clk 0:01:31.4]} 30. Rxe6 {[%clk 0:01:55.1]} 30... fxe6 {[%clk
0:01:25.3]} 31. Bxe6+ {[%clk 0:01:54.8]} 31... Kg7 {[%clk 0:01:26.2]} 32. Bxc8
{[%clk 0:01:55.5]} 32... Bc5 {[%clk 0:01:27.1]} 33. Kf3 {[%clk 0:01:46.7]} 33...
Rxf2+ {[%clk 0:01:24.6]} 34. Ke4 {[%clk 0:01:46.8]} 34... a5 {[%clk 0:01:04.2]}
35. b4 {[%clk 0:01:40.7]} 35... axb4 {[%clk 0:01:03.6]} 36. axb4 {[%clk
0:01:41.6]} 36... Bd6 {[%clk 0:01:00.3]} 37. g4 {[%clk 0:01:28.1]} 37... Be7
{[%clk 0:00:51]} 38. h5 {[%clk 0:01:25.3]} 38... Bf6 {[%clk 0:00:51]} 39. Rb3
{[%clk 0:01:16.5]} 39... gxh5 {[%clk 0:00:50.8]} 40. gxh5 {[%clk 0:01:16.2]}
40... Kh6 {[%clk 0:00:51.4]} 41. Bd7 {[%clk 0:01:14.1]} 41... Re2+ {[%clk
0:00:34.6]} 42. Kd3 {[%clk 0:00:56.9]} 42... Re5 {[%clk 0:00:34.1]} 43. Bg4
{[%clk 0:00:56]} 43... Rg5 {[%clk 0:00:29.5]} 44. Be2 {[%clk 0:00:54.4]} 44...
Kg7 {[%clk 0:00:21]} 45. Ra3 {[%clk 0:00:53.6]} 45... Kf8 {[%clk 0:00:19.8]} 46.
Kd2 {[%clk 0:00:49]} 46... Rg2 {[%clk 0:00:17.6]} 47. Ra8+ {[%clk 0:00:43.7]}
47... Ke7 {[%clk 0:00:17.6]} 48. Rc8 {[%clk 0:00:44.1]} 48... Kd6 {[%clk
0:00:09.2]} 49. Rc5 {[%clk 0:00:38.6]} 49... Rh2 {[%clk 0:00:02.8]} 50. Rxb5
{[%clk 0:00:35.5]} 50... Bxc3+ {[%clk 0:00:03]} 51. Kxc3 {[%clk 0:00:35.2]}
51... Rxe2 {[%clk 0:00:03.7]} 52. Rg5 {[%clk 0:00:27.4]} 52... Re4 {[%clk
0:00:04.1]} 53. Kb3 {[%clk 0:00:24.8]} 53... Rh4 {[%clk 0:00:04.8]} 54. Ka4
{[%clk 0:00:24.3]} 54... Kc6 {[%clk 0:00:05.7]} 55. Ka5 {[%clk 0:00:23.7]} 55...
Rh1 {[%clk 0:00:05.6]} 56. Rg6+ {[%clk 0:00:19.7]} 56... Kb7 {[%clk 0:00:04.4]}
57. h6 {[%clk 0:00:20.2]} 57... Ra1+ {[%clk 0:00:04.6]} 58. Kb5 {[%clk
0:00:20.2]} 58... Rh1 {[%clk 0:00:05.5]} 59. Rg7+ {[%clk 0:00:20.4]} 1-0

[Event "Early-Titled-Tuesday-Blitz-April-02-2024"]
[Site "Chess.com"]
[Date "2024.04.02"]
[Round "9"]
[White "vovachesss"]
[Black "slidingknight2775"]
[Result "1-0"]
[WhiteElo "2818"]
[BlackElo "2608"]
[TimeControl "180+1"]
[EndTime "9:46:11 PDT"]
[Termination "vovachesss won by checkmate"]

1. e4 {[%clk 0:03:00.9]} 1... c5 {[%clk 0:02:58.8]} 2. Nf3 {[%clk 0:03:00.5]}
2... d6 {[%clk 0:02:59.2]} 3. d4 {[%clk 0:02:59.6]} 3... cxd4 {[%clk 0:03:00.1]}
4. Nxd4 {[%clk 0:03:00.5]} 4... Nf6 {[%clk 0:03:00.7]} 5. Nc3 {[%clk 0:03:01]}
5... a6 {[%clk 0:02:55.8]} 6. Rg1 {[%clk 0:03:00.6]} 6... e5 {[%clk 0:02:51]} 7.
Nb3 {[%clk 0:03:00.8]} 7... h5 {[%clk 0:02:49.4]} 8. h3 {[%clk 0:02:57.3]} 8...
h4 {[%clk 0:02:45.8]} 9. Be3 {[%clk 0:02:57.1]} 9... Be6 {[%clk 0:02:45.6]} 10.
Qd2 {[%clk 0:02:57.1]} 10... Nbd7 {[%clk 0:02:45.2]} 11. O-O-O {[%clk
0:02:57.5]} 11... b5 {[%clk 0:02:44.5]} 12. Kb1 {[%clk 0:02:54.5]} 12... Be7
{[%clk 0:02:39.6]} 13. f4 {[%clk 0:02:54]} 13... Nb6 {[%clk 0:02:38.5]} 14. fxe5
{[%clk 0:02:06.3]} 14... dxe5 {[%clk 0:02:19]} 15. Qxd8+ {[%clk 0:02:04.9]}
15... Bxd8 {[%clk 0:02:19.9]} 16. Rxd8+ {[%clk 0:02:04.1]} 16... Rxd8 {[%clk
0:02:20.8]} 17. Bxb6 {[%clk 0:02:04.2]} 17... Rc8 {[%clk 0:02:18]} 18. Be3
{[%clk 0:01:53.3]} 18... Bc4 {[%clk 0:01:52.7]} 19. Bxc4 {[%clk 0:01:50.4]}
19... Rxc4 {[%clk 0:01:53.6]} 20. Nd2 {[%clk 0:01:15]} 20... Rc8 {[%clk
0:01:37.8]} 21. a3 {[%clk 0:01:13.2]} 21... Nd7 {[%clk 0:01:20.3]} 22. Nd5
{[%clk 0:01:02.8]} 22... f6 {[%clk 0:01:19.8]} 23. c4 {[%clk 0:00:57.1]} 23...
bxc4 {[%clk 0:01:10.2]} 24. Rc1 {[%clk 0:00:56.9]} 24... Kf7 {[%clk 0:01:10.8]}
25. Nxc4 {[%clk 0:00:57.1]} 25... Ke6 {[%clk 0:01:11.3]} 26. b3 {[%clk
0:00:48.2]} 26... Nc5 {[%clk 0:01:08.8]} 27. Bxc5 {[%clk 0:00:44.6]} 27... Rxc5
{[%clk 0:01:09.7]} 28. Rd1 {[%clk 0:00:42.3]} 28... Rb8 {[%clk 0:01:03.2]} 29.
Kc2 {[%clk 0:00:40.4]} 29... a5 {[%clk 0:01:02.6]} 30. Kc3 {[%clk 0:00:37.7]}
30... Rbc8 {[%clk 0:00:56.4]} 31. Ne3 {[%clk 0:00:35.7]} 31... g6 {[%clk
0:00:51.8]} 32. Rd6+ {[%clk 0:00:34.9]} 32... Ke7 {[%clk 0:00:52.1]} 33. Nd5+
{[%clk 0:00:32.4]} 33... Kf7 {[%clk 0:00:50.1]} 34. Rd7+ {[%clk 0:00:27.2]}
34... Kf8 {[%clk 0:00:46.2]} 35. Rd6 {[%clk 0:00:12.7]} 35... f5 {[%clk
0:00:40.8]} 36. Rxg6 {[%clk 0:00:12.4]} 36... fxe4 {[%clk 0:00:40.3]} 37. Rg4
{[%clk 0:00:11.7]} 37... Rxd5 {[%clk 0:00:36.4]} 38. Rxe4 {[%clk 0:00:11.7]}
38... Rd1 {[%clk 0:00:32.6]} 39. Rxh4 {[%clk 0:00:11.8]} 39... a4 {[%clk
0:00:31.6]} 40. Rh8+ {[%clk 0:00:11.6]} 40... Kg7 {[%clk 0:00:30.2]} 41. Rxc8
{[%clk 0:00:12.5]} 41... axb3 {[%clk 0:00:30.4]} 42. Kxb3 {[%clk 0:00:12.5]}
42... Rb1+ {[%clk 0:00:30.8]} 43. Nb2 {[%clk 0:00:12.5]} 43... Rg1 {[%clk
0:00:31.7]} 44. Rc2 {[%clk 0:00:12]} 44... e4 {[%clk 0:00:31.6]} 45. Nc4 {[%clk
0:00:12.3]} 45... Rb1+ {[%clk 0:00:31.1]} 46. Rb2 {[%clk 0:00:12.8]} 46... Rc1
{[%clk 0:00:31.1]} 47. a4 {[%clk 0:00:12.7]} 47... Kf6 {[%clk 0:00:31.5]} 48. a5
{[%clk 0:00:12.8]} 48... Ra1 {[%clk 0:00:32.1]} 49. Ra2 {[%clk 0:00:13]} 49...
Rb1+ {[%clk 0:00:32.8]} 50. Kc2 {[%clk 0:00:13.1]} 50... Rb7 {[%clk 0:00:30.5]}
51. a6 {[%clk 0:00:12.8]} 51... Ra7 {[%clk 0:00:31.2]} 52. Nd6 {[%clk
0:00:13.4]} 52... Ke5 {[%clk 0:00:31]} 53. Nb5 {[%clk 0:00:14]} 53... Ra8 {[%clk
0:00:31.3]} 54. a7 {[%clk 0:00:14.4]} 54... Rc8+ {[%clk 0:00:32.2]} 55. Kd2
{[%clk 0:00:14]} 55... Ra8 {[%clk 0:00:33.1]} 56. Nc7 {[%clk 0:00:14.1]} 56...
Rxa7 {[%clk 0:00:34]} 57. Rxa7 {[%clk 0:00:13.8]} 57... Kf4 {[%clk 0:00:34.9]}
58. Ra4 {[%clk 0:00:14]} 58... Kg3 {[%clk 0:00:35.8]} 59. Rxe4 {[%clk
0:00:14.1]} 59... Kf2 {[%clk 0:00:36.7]} 60. Rg4 {[%clk 0:00:13.9]} 60... Kf1
{[%clk 0:00:36.8]} 61. h4 {[%clk 0:00:14.1]} 61... Kf2 {[%clk 0:00:37.7]} 62. h5
{[%clk 0:00:15]} 62... Kf1 {[%clk 0:00:38.6]} 63. h6 {[%clk 0:00:15.8]} 63...
Kf2 {[%clk 0:00:39.5]} 64. h7 {[%clk 0:00:16.5]} 64... Kf1 {[%clk 0:00:39.9]}
65. h8=Q {[%clk 0:00:17.1]} 65... Kg1 {[%clk 0:00:40.8]} 66. Re4 {[%clk
0:00:16.5]} 66... Kf2 {[%clk 0:00:40.9]} 67. Qf6+ {[%clk 0:00:16.6]} 67... Kg1
{[%clk 0:00:41.8]} 68. g4 {[%clk 0:00:16.1]} 68... Kh2 {[%clk 0:00:42.7]} 69.
Re2+ {[%clk 0:00:16.4]} 69... Kg3 {[%clk 0:00:43.6]} 70. Qf2+ {[%clk 0:00:16.3]}
70... Kh3 {[%clk 0:00:41.2]} 71. Qg2+ {[%clk 0:00:15]} 71... Kh4 {[%clk
0:00:41.3]} 72. g5 {[%clk 0:00:15.9]} 72... Kh5 {[%clk 0:00:41.6]} 73. g6 {[%clk
0:00:16.4]} 73... Kh6 {[%clk 0:00:42]} 74. g7 {[%clk 0:00:17]} 74... Kh5 {[%clk
0:00:42.5]} 75. g8=Q {[%clk 0:00:16.6]} 75... Kh6 {[%clk 0:00:43.1]} 76. Ne6
{[%clk 0:00:15.7]} 76... Kh5 {[%clk 0:00:43.1]} 77. Nf4+ {[%clk 0:00:15.4]}
77... Kh6 {[%clk 0:00:43.4]} 78. Q2g6# {[%clk 0:00:15.6]} 1-0

[Event "Early-Titled-Tuesday-Blitz-April-02-2024"]
[Site "Chess.com"]
[Date "2024.04.02"]
[Round "9"]
[White "Vasily_IM"]
[Black "emeli_chess"]
[Result "0-1"]
[WhiteElo "2531"]
[BlackElo "2431"]
[TimeControl "180+1"]
[EndTime "9:46:11 PDT"]
[Termination "emeli_chess won by resignation"]

1. d4 {[%clk 0:03:00]} 1... Nf6 {[%clk 0:02:59.6]} 2. c4 {[%clk 0:02:59.5]} 2...
e6 {[%clk 0:02:59.9]} 3. Nc3 {[%clk 0:02:59.3]} 3... Bb4 {[%clk 0:02:59.7]} 4.
Qc2 {[%clk 0:02:59.2]} 4... c5 {[%clk 0:02:59.3]} 5. dxc5 {[%clk 0:02:58.7]}
5... O-O {[%clk 0:02:58.6]} 6. Bf4 {[%clk 0:02:58.2]} 6... Bxc5 {[%clk
0:02:51.5]} 7. Nf3 {[%clk 0:02:57.9]} 7... Be7 {[%clk 0:02:40.3]} 8. e3 {[%clk
0:02:57.5]} 8... d6 {[%clk 0:02:39.7]} 9. Be2 {[%clk 0:02:57.4]} 9... Nh5 {[%clk
0:02:32.9]} 10. Bg3 {[%clk 0:02:55.6]} 10... Nd7 {[%clk 0:02:24.7]} 11. Rd1
{[%clk 0:02:54.6]} 11... Nxg3 {[%clk 0:02:21]} 12. hxg3 {[%clk 0:02:54.2]} 12...
Nf6 {[%clk 0:02:20.6]} 13. Ne4 {[%clk 0:02:45.1]} 13... Nxe4 {[%clk 0:02:05.8]}
14. Qxe4 {[%clk 0:02:44.3]} 14... f5 {[%clk 0:02:06.1]} 15. Qc2 {[%clk
0:02:40.9]} 15... Bd7 {[%clk 0:01:54.3]} 16. g4 {[%clk 0:02:38.5]} 16... g6
{[%clk 0:01:49.9]} 17. gxf5 {[%clk 0:02:35.5]} 17... exf5 {[%clk 0:01:38.2]} 18.
Nd4 {[%clk 0:02:31.1]} 18... d5 {[%clk 0:01:22]} 19. cxd5 {[%clk 0:02:27.2]}
19... Bd6 {[%clk 0:01:21.6]} 20. Ne6 {[%clk 0:02:20.7]} 20... Qa5+ {[%clk
0:01:05.9]} 21. Kf1 {[%clk 0:02:20.4]} 21... Rfe8 {[%clk 0:01:02.7]} 22. a3
{[%clk 0:02:11.1]} 22... Rac8 {[%clk 0:00:59.4]} 23. Qd2 {[%clk 0:01:52.3]}
23... Qxd2 {[%clk 0:00:53.9]} 24. Rxd2 {[%clk 0:01:52.2]} 24... Bxe6 {[%clk
0:00:53.6]} 25. dxe6 {[%clk 0:01:51.8]} 25... Rxe6 {[%clk 0:00:53.5]} 26. Bf3
{[%clk 0:01:42.8]} 26... Rc1+ {[%clk 0:00:44.1]} 27. Rd1 {[%clk 0:01:42.2]}
27... Rxd1+ {[%clk 0:00:44]} 28. Bxd1 {[%clk 0:01:43.1]} 28... Kg7 {[%clk
0:00:41.8]} 29. Ke2 {[%clk 0:01:37.2]} 29... Be5 {[%clk 0:00:40.3]} 30. b4
{[%clk 0:01:28.8]} 30... Rd6 {[%clk 0:00:39.8]} 31. Bb3 {[%clk 0:01:24.9]} 31...
Bb2 {[%clk 0:00:38.9]} 32. a4 {[%clk 0:01:16.2]} 32... Bc3 {[%clk 0:00:38.6]}
33. b5 {[%clk 0:01:15.8]} 33... Rd2+ {[%clk 0:00:37.7]} 34. Kf3 {[%clk
0:01:15.8]} 34... g5 {[%clk 0:00:26.9]} 35. g3 {[%clk 0:01:13.4]} 35... g4+
{[%clk 0:00:21.1]} 36. Kg2 {[%clk 0:01:13.2]} 36... Rb2 {[%clk 0:00:16.7]} 37.
Bd5 {[%clk 0:01:10.9]} 37... b6 {[%clk 0:00:16.4]} 38. Rc1 {[%clk 0:01:10.4]}
38... Bd2 {[%clk 0:00:15.1]} 39. Rc7+ {[%clk 0:01:10]} 39... Kg6 {[%clk
0:00:15.4]} 40. Kf1 {[%clk 0:01:03]} 40... Rb1+ {[%clk 0:00:10.4]} 41. Ke2
{[%clk 0:01:02.7]} 41... Ba5 {[%clk 0:00:10.4]} 42. Rxa7 {[%clk 0:00:56]} 42...
Re1+ {[%clk 0:00:09.9]} 43. Kd3 {[%clk 0:00:51.6]} 43... Rf1 {[%clk 0:00:10]}
44. Rxa5 {[%clk 0:00:28.9]} 44... bxa5 {[%clk 0:00:09.4]} 45. b6 {[%clk
0:00:27.7]} 45... Rb1 {[%clk 0:00:08.4]} 46. b7 {[%clk 0:00:27.4]} 46... Kf6
{[%clk 0:00:07.7]} 47. Kd4 {[%clk 0:00:27.4]} 47... Ke7 {[%clk 0:00:06.8]} 48.
Kc5 {[%clk 0:00:25.6]} 48... Kd7 {[%clk 0:00:06.5]} 49. e4 {[%clk 0:00:21.8]}
49... fxe4 {[%clk 0:00:05.8]} 50. Bxe4 {[%clk 0:00:21.8]} 50... Rb4 {[%clk
0:00:04.8]} 51. Bc6+ {[%clk 0:00:19.9]} 51... Kc7 {[%clk 0:00:05]} 52. Bb5
{[%clk 0:00:19.6]} 52... Kxb7 {[%clk 0:00:04.4]} 53. Be2 {[%clk 0:00:18]} 53...
h5 {[%clk 0:00:04.4]} 54. Kd5 {[%clk 0:00:17.9]} 54... Rxa4 {[%clk 0:00:04.4]}
55. Ke5 {[%clk 0:00:17.5]} 55... Ra2 {[%clk 0:00:04.6]} 0-1